bitfinex/quotes_SOLUSD_20240725
["timestamp","ask_amount","ask_price","bid_price","bid_amount"]
[1721923907241,20.0,170.35,170.24,14.6846]
[1721923907437,20.0,170.35,170.25,50.8734]
[1721923908120,17.64,170.38,170.25,45.0]
[1721923908320,16.4675,170.39,170.27,6.198]
[1721923908540,16.4675,170.39,170.28,46.1741609]
[1721923908839,16.4675,170.39,170.28,45.0]
[1721923909009,5.8696,170.37,170.28,45.0]
[1721923909215,16.4675,170.39,170.28,45.0]
[1721923909216,6.88566888,170.38,170.28,46.17428057]
[1721923909436,25.8696,170.37,170.27,21.4167]
[1721923909648,6.88576888,170.38,170.27,21.4167]
[1721923909852,20.0,170.37,170.27,21.4167]
[1721923910446,40.0,170.37,170.27,21.4167]
[1721923910743,45.8696,170.37,170.27,21.4167]
[1721923910929,45.8696,170.37,170.28,45.0]
[1721923911133,5.8699,170.36,170.28,45.0]
[1721923912145,20.0,170.37,170.28,45.0]
[1721923912345,26.88566888,170.38,170.28,45.0]
[1721923912521,5.8695,170.37,170.28,45.0]
[1721923912831,25.8699,170.36,170.24,14.6845]
[1721923913033,5.8703,170.35,170.25,65.0]
[1721923913343,20.0,170.34,170.25,65.0]
[1721923913531,5.8703,170.35,170.25,65.0]
[1721923913841,20.0,170.34,170.25,65.0]
[1721923914046,25.87,170.36,170.25,65.0]
[1721923914342,20.0,170.33,170.23,6.1813]
[1721923914533,17.64,170.35,170.23,6.1813]
[1721923914741,20.0,170.34,170.23,6.1813]
[1721923915242,20.0,170.31,170.23,6.1813]
[1721923915447,5.8715,170.32,170.23,6.1813]
[1721923915626,20.0,170.3,170.23,6.1813]
[1721923915827,5.8715,170.32,170.23,6.1813]
[1721923916029,20.0,170.31,170.23,6.1813]
[1721923916629,37.64,170.3,170.19,6.1948]
[1721923916919,20.0,170.29,170.19,6.1948]
[1721923917226,20.0,170.3,170.19,6.1948]
[1721923917424,20.0,170.29,170.19,7.3696862]
[1721923917637,43.512,170.3,170.19,7.36979138]
[1721923918456,20.0,170.28,170.19,7.36979138]
[1721923918629,20.0,170.27,170.19,6.1948]
[1721923919328,20.0,170.28,170.2,46.17497898]
[1721923919529,20.0,170.29,170.2,52.05027898]
[1721923919751,20.0,170.3,170.2,50.8754]
[1721923919935,20.0,170.3,170.2,45.0]
[1721923920139,5.8723,170.29,170.2,45.0]
[1721923920449,20.0,170.28,170.2,45.0]
[1721923920826,20.0,170.29,170.2,45.0]
[1721923921550,20.0,170.27,170.2,45.0]
[1721923921938,25.8731,170.27,170.19,6.1948]
[1721923922653,20.0,170.27,170.19,6.1948]
[1721923922862,20.0,170.26,170.19,6.1948]
[1721923923756,20.0,170.27,170.2,50.8752]
[1721923923940,40.0,170.29,170.2,45.0]
[1721923924460,20.0,170.27,170.19,6.1948]
[1721923925152,20.0,170.29,170.19,12.0702]
[1721923925365,20.0,170.29,170.19,6.1948]
[1721923925952,20.0,170.29,170.2,45.0]
[1721923926133,20.0,170.28,170.19,6.1948]
[1721923926555,406.3724,170.29,170.19,6.1948]
[1721923926556,400.5,170.29,170.19,6.1948]
[1721923926733,400.5,170.29,170.2,45.0]
[1721923926934,420.5,170.29,170.2,45.0]
[1721923927136,20.0,170.28,170.2,45.0]
[1721923927457,400.5,170.29,170.2,45.0]
[1721923927945,380.5,170.29,170.21,1.17475256]
[1721923928147,380.5,170.29,170.21,21.17475256]
[1721923928456,380.5,170.29,170.22,45.0]
[1721923929132,380.5,170.29,170.22,50.8747]
[1721923929434,380.5,170.29,170.22,45.0]
[1721923929834,380.5,170.29,170.23,5.8743]
[1721923930054,380.5,170.29,170.24,50.8739]
[1721923930238,380.5,170.29,170.24,1.17457157]
[1721923930443,380.5,170.29,170.25,50.8736]
[1721923930637,380.5,170.29,170.26,5.8732]
[1721923930839,1.01643853,170.35,170.27,45.0]
[1721923931337,1.01643853,170.35,170.26,45.0]
[1721923932037,1.01643853,170.35,170.25,45.0]
[1721923932439,21.01643853,170.35,170.25,45.0]
[1721923933052,41.01643853,170.35,170.25,45.0]
[1721923933256,20.0,170.31,170.18,35.766]
[1721923933552,20.0,170.29,170.18,35.766]
[1721923933768,20.0,170.29,170.17,15.3533]
[1721923933769,25.8724,170.29,170.17,30.0437]
[1721923933940,20.0,170.28,170.17,30.0437]
[1721923934137,20.0,170.27,170.17,30.0437]
[1721923934663,20.0,170.28,170.17,35.9201]
[1721923934963,20.0,170.29,170.17,35.9201]
[1721923935167,20.0,170.29,170.17,45.90946946]
[1721923935382,20.0,170.3,170.18,1.17481319]
[1721923935543,20.0,170.31,170.22,5.8746]
[1721923936051,20.0,170.31,170.23,45.0]
[1721923937364,380.5,170.32,170.23,45.0]
[1721923937555,380.5,170.32,170.24,5.8739]
[1721923937856,380.5,170.32,170.25,45.0]
[1721923938055,27.80455388,170.35,170.25,45.0]
[1721923938450,27.80455388,170.35,170.23,20.5598]
[1721923938451,27.80455388,170.35,170.24,45.0]
[1721923938652,27.80455388,170.35,170.24,50.874]
[1721923938854,20.0,170.34,170.24,45.0]
[1721923939972,1.01643853,170.35,170.29,5.8721]
[1721923940264,1.01643853,170.35,170.3,1.17425346]
[1721923940461,387.28811535,170.4,170.3,46.17425346]
[1721923940675,1.01641394,170.38,170.3,46.17425346]
[1721923940847,1.01641394,170.38,170.3,1.17425346]
[1721923941164,1.01641394,170.38,170.29,59.6802]
[1721923941672,21.01641394,170.38,170.29,45.0]
[1721923942040,38.65641394,170.38,170.28,6.3983]
[1721923942254,20.0,170.34,170.28,6.3983]
[1721923942569,37.64,170.32,170.23,6.4092]
[1721923942767,16.94836077,170.35,170.23,6.4092]
[1721923942768,25.872,170.3,170.23,6.4092]
[1721923942953,20.0,170.3,170.23,6.4092]
[1721923943157,33.62,170.33,170.23,6.4092]
[1721923943358,20.0,170.32,170.23,6.4092]
[1721923943862,20.0,170.33,170.23,6.4092]
[1721923944080,37.64,170.32,170.23,6.4092]
[1721923944250,54.59182239,170.31,170.23,6.4092]
[1721923944453,37.64,170.31,170.23,6.4092]
[1721923944670,54.59302147,170.3,170.21,15.6067]
[1721923944847,54.59302147,170.3,170.19,6.0962]
[1721923944848,25.8729,170.28,170.19,6.0962]
[1721923945042,20.0,170.29,170.19,6.0962]
[1721923946068,20.0,170.29,170.2,5.8751]
[1721923946368,20.0,170.29,170.22,5.8746]
[1721923946570,380.5,170.3,170.23,45.0]
[1721923947958,380.5,170.3,170.23,65.5602]
[1721923948262,380.5,170.3,170.25,14.6837]
[1721923948457,380.5,170.3,170.28,5.8726]
[1721923948655,1.01641394,170.38,170.28,5.8726]
[1721923948858,17.96156021,170.38,170.29,1.17429989]
[1721923949071,7.79707031,170.38,170.28,46.17434988]
[1721923949977,7.79707031,170.38,170.28,45.0]
[1721923950179,7.79707031,170.38,170.28,50.8726]
[1721923950389,7.79707031,170.38,170.28,45.0]
[1721923950572,13.66627031,170.38,170.28,45.0]
[1721923950760,20.0,170.37,170.28,45.0]
[1721923950961,20.0,170.37,170.25,14.6837]
[1721923951264,20.0,170.37,170.26,21.17438927]
[1721923951474,40.0,170.37,170.26,20.0]
[1721923951656,45.8696,170.37,170.26,20.0]
[1721923951855,45.8696,170.37,170.26,21.17446802]
[1721923952354,20.0,170.37,170.29,5.8722]
[1721923952558,20.0,170.37,170.3,1.17422851]
[1721923952780,1.01641394,170.38,170.3,1.17422851]
[1721923952966,1.01641394,170.38,170.3,46.17422851]
[1721923953165,1.01641394,170.38,170.31,6.6324]
[1721923953364,1.01641394,170.38,170.32,52.04530189]
[1721923953583,1.01641394,170.38,170.33,1.17399619]
[1721923953881,1.01641394,170.38,170.32,45.0]
[1721923954269,1.01641394,170.38,170.32,50.8712]
[1721923954655,1.01641394,170.38,170.32,45.0]
[1721923956164,1.01641394,170.38,170.32,50.8712]
[1721923956368,1.01641394,170.38,170.33,17.22611756]
[1721923956683,639.45897816,170.44,170.34,50.8706]
[1721923956883,640.47507271,170.44,170.35,1.17389767]
[1721923957081,3.37507271,170.44,170.35,1.17389767]
[1721923957266,3.37507271,170.44,170.34,45.0]
[1721923957963,23.37507271,170.44,170.34,45.0]
[1721923958480,21.01609455,170.44,170.34,50.8705]
[1721923959657,1.01609455,170.44,170.36,6.3728]
[1721923959853,29.52082784,170.49,170.37,60.84712806]
[1721923960088,23.52166,170.49,170.38,20.0]
[1721923960282,6.78065637,170.5,170.39,46.17340852]
[1721923960492,6.78065637,170.5,170.4,7.04180825]
[1721923960667,6.78065637,170.5,170.41,45.0]
[1721923961083,12.64605637,170.5,170.4,45.0]
[1721923961388,5.8658,170.48,170.38,20.0]
[1721923961685,70.28625637,170.49,170.37,20.0]
[1721923961861,70.28625637,170.49,170.38,45.0]
[1721923962060,20.0,170.47,170.37,20.0]
[1721923962372,20.0,170.46,170.36,6.3728]
[1721923962576,20.0,170.45,170.36,6.3728]
[1721923962881,43.5068,170.45,170.36,6.3728]
[1721923963075,21.01607338,170.44,170.36,6.3728]
[1721923963261,20.0,170.43,170.36,6.3728]
[1721923963679,1.01607338,170.44,170.36,6.3728]
[1721923964982,1.01607338,170.44,170.36,12.2424]
[1721923965182,1.01607338,170.44,170.38,5.8691]
[1721923965366,20.0,170.48,170.39,45.0]
[1721923965566,20.0,170.48,170.36,12.2426]
[1721923965867,20.0,170.48,170.37,45.0]
[1721923966370,25.8658,170.48,170.37,45.0]
[1721923966592,5.8661,170.47,170.37,45.0]
[1721923966888,20.0,170.46,170.37,45.0]
[1721923967659,45.8665,170.46,170.37,45.0]
[1721923967861,45.8665,170.46,170.36,6.3728]
[1721923968502,1.01603779,170.45,170.36,6.3728]
[1721923970773,1.01603779,170.45,170.36,12.2426]
[1721923970971,1.01603779,170.45,170.36,6.3728]
[1721923971174,20.0,170.43,170.33,16.0522]
[1721923971571,20.0,170.43,170.31,21.1366]
[1721923971572,20.0,170.44,170.31,21.1366]
[1721923971784,20.0,170.44,170.33,14.6766]
[1721923971993,20.0,170.43,170.33,14.6766]
[1721923972184,20.0,170.43,170.31,6.4577]
[1721923972368,20.0,170.43,170.31,12.3292]
[1721923972691,25.8672,170.44,170.32,5.8712]
[1721923972993,20.0,170.44,170.32,5.8712]
[1721923973493,20.0,170.44,170.31,6.4577]
[1721923973795,20.0,170.44,170.39,5.8688]
[1721923974087,1.01603779,170.45,170.4,1.17366916]
[1721923974289,22.30385637,170.5,170.39,77.034]
[1721923974590,1.01576827,170.46,170.4,5.8684]
[1721923974789,22.30385637,170.5,170.41,46.1734665]
[1721923974975,1.01571639,170.49,170.41,46.1734665]
[1721923975171,1.01571639,170.49,170.42,5.8677]
[1721923975373,1.01571639,170.49,170.41,50.8681]
[1721923975590,401.55026784,170.54,170.42,15.84201923]
[1721923975769,380.5,170.54,170.45,5.8666]
[1721923975969,380.5,170.54,170.46,7.03935535]
[1721923976276,380.5,170.54,170.46,5.8663]
[1721923976461,380.5,170.54,170.47,45.0]
[1721923976868,6.75877304,170.56,170.48,1.17301761]
[1721923977092,15.0511,170.58,170.49,1.17285754]
[1721923977280,5.99916784,170.59,170.49,1.17285754]
[1721923977492,5.99916784,170.59,170.49,7.03795754]
[1721923977868,5.99916784,170.59,170.49,1.17285754]
[1721923978092,5.99916784,170.59,170.48,50.8657]
[1721923978686,1.01578181,170.58,170.48,50.8657]
[1721923978865,1.01578181,170.58,170.49,1.17287876]
[1721923979283,1.01578181,170.58,170.49,7.03817876]
[1721923979567,1.01578181,170.58,170.5,45.0]
[1721923979965,1.01578181,170.58,170.49,45.0]
[1721923980672,1.01578181,170.58,170.49,50.8654]
[1721923980874,1.01578181,170.58,170.49,45.0]
[1721923981182,17.64,170.57,170.48,45.0]
[1721923981494,20.0,170.56,170.47,6.1981]
[1721923981697,20.0,170.56,170.47,12.0642]
[1721923982006,20.0,170.56,170.47,20.8632]
[1721923982176,1.01578181,170.58,170.48,45.0]
[1721923982371,1.01578181,170.58,170.48,50.8655]
[1721923982590,1.01578181,170.58,170.49,5.8654]
[1721923982914,1.01578181,170.58,170.5,45.0]
[1721923983089,1.01578181,170.58,170.47,26.729]
[1721923983298,1.01578181,170.58,170.48,20.0]
[1721923983485,1.01578181,170.58,170.48,25.8657]
[1721923983791,1.01578181,170.58,170.48,20.0]
[1721923984865,20.0,170.57,170.48,20.0]
[1721923985091,1.01578181,170.58,170.48,25.8655]
[1721923985287,1.01578181,170.58,170.48,5.8655]
[1721923985870,1.01578181,170.58,170.47,6.1981]
[1721923985871,1.01578181,170.58,170.49,5.8654]
[1721923986979,18.65578181,170.58,170.47,6.1981]
[1721923987183,20.0,170.57,170.48,45.0]
[1721923987382,20.0,170.57,170.48,50.8657]
[1721923987793,38.65578181,170.58,170.48,50.8657]
[1721923987976,38.65578181,170.58,170.48,59.6638]
[1721923987977,21.01578181,170.58,170.48,59.6638]
[1721923988178,1.01578181,170.58,170.48,59.6638]
[1721923988385,20.0,170.57,170.49,5.8653]
[1721923988581,1.01578181,170.58,170.48,65.5295]
[1721923988990,1.01578181,170.58,170.48,45.0]
[1721923989199,1.01578181,170.58,170.53,5.8637]
[1721923989403,380.5,170.59,170.54,5.8635]
[1721923989697,380.5,170.59,170.56,5.8629]
[1721923989896,1.01623478,170.63,170.57,7.03468774]
[1721923990099,1.01623478,170.63,170.58,1.17235142]
[1721923990431,1.01623478,170.63,170.55,6.157]
[1721923991069,1.01623478,170.63,170.51,6.0309]
[1721923991271,1.01623478,170.63,170.52,79.6604]
[1721923991485,1.01623478,170.63,170.55,5.8631]
[1721923991881,1.01623478,170.63,170.56,5.863]
[1721923992205,0.8032374,170.65,170.57,7.03492115]
[1721923992507,1.81924441,170.65,170.57,5.8625]
[1721923992989,1.81924441,170.65,170.57,1.17236626]
[1721923993581,1.81924441,170.65,170.58,1.17234237]
[1721923994512,0.8032374,170.65,170.59,1.17229263]
[1721923994716,0.8032374,170.65,170.59,78.59189263]
[1721923994918,0.8032374,170.65,170.61,5.8613]
[1721923995095,0.8032374,170.65,170.62,1.17201925]
[1721923995292,0.8032374,170.65,170.63,14.6515]
[1721923995505,0.8032374,170.65,170.59,71.5579]
[1721923995709,0.8032374,170.65,170.6,14.6538]
[1721923995937,0.8032374,170.65,170.61,45.0]
[1721923996227,0.8032374,170.65,170.59,26.5579]
[1721923996397,0.8032374,170.65,170.6,45.0]
[1721923996592,0.8032374,170.65,170.62,5.8609]
[1721923996797,0.8032374,170.65,170.61,5.8612]
[1721923997021,0.8032374,170.65,170.62,50.8609]
[1721923997215,0.8032374,170.65,170.6,60.82526134]
[1721923997525,0.8032374,170.65,170.63,5.8603]
[1721923997815,0.8032374,170.65,170.62,20.5128]
[1721923997994,0.8032374,170.65,170.61,5.8611]
[1721923998200,0.8032374,170.65,170.64,5.8602]
[1721923998396,0.8032374,170.65,170.64,50.8602]
[1721923998996,0.8032374,170.65,170.64,70.8602]
[1721923999622,0.8032374,170.65,170.64,100.6402]
[1721923999999,74.7747,170.79,170.64,100.6402]
[1721924000000,27.3547,170.79,170.68,14.6471]
[1721924000198,27.3547,170.79,170.71,14.6447]
[1721924000393,20.9763,170.79,170.71,14.6447]
[1721924000716,5.889,170.8,170.72,1.1713952]
[1721924000902,5.889,170.8,170.67,29.78]
[1721924000903,5.889,170.8,170.68,15.81853038]
[1721924001095,5.889,170.8,170.69,45.0]
[1721924001418,5.889,170.8,170.7,1.17133119]
[1721924001599,5.889,170.8,170.71,1.17124639]
[1721924001799,5.889,170.8,170.71,46.17124639]
[1721924002218,5.889,170.8,170.71,45.0]
[1721924002719,5.889,170.8,170.68,1.17126224]
[1721924002720,5.889,170.78,170.68,5.8588]
[1721924002910,5.889,170.78,170.69,65.0]
[1721924003223,6.90478863,170.78,170.69,65.0]
[1721924003429,6.90478863,170.78,170.69,70.8584]
[1721924003798,6.90478863,170.78,170.69,65.0]
[1721924004729,24.54478863,170.78,170.69,20.0]
[1721924004904,6.90478863,170.78,170.69,20.0]
[1721924005304,6.90478863,170.78,170.68,20.0]
[1721924005906,6.90478863,170.78,170.69,45.0]
[1721924006327,5.889,170.78,170.72,5.8574]
[1721924006499,5.889,170.78,170.69,59.6458]
[1721924007317,5.889,170.78,170.69,45.0]
[1721924009324,5.889,170.78,170.69,50.8585]
[1721924009921,5.889,170.78,170.7,5.8581]
[1721924010439,5.889,170.78,170.69,45.0]
[1721924011411,5.889,170.78,170.69,50.8585]
[1721924011810,5.889,170.78,170.69,45.0]
[1721924012924,5.889,170.78,170.69,50.8585]
[1721924013109,5.889,170.78,170.69,45.0]
[1721924013431,5.889,170.78,170.68,40.5054]
[1721924013914,5.889,170.78,170.69,5.8584]
[1721924015007,5.889,170.78,170.7,5.8582]
[1721924015333,5.889,170.78,170.71,5.8578]
[1721924015631,5.889,170.78,170.73,5.857]
[1721924015835,5.889,170.79,170.7,1.17125619]
[1721924016127,5.889,170.79,170.77,14.639]
[1721924016330,5.889,170.79,170.75,5.8562]
[1721924016518,5.889,170.79,170.74,20.4982]
[1721924016726,5.889,170.79,170.75,50.8563]
[1721924016901,6.6922374,170.82,170.75,50.8563]
[1721924017106,6.6922374,170.82,170.75,52.02735809]
[1721924017309,6.6922374,170.82,170.75,45.0]
[1721924017512,6.6922374,170.82,170.74,14.6417]
[1721924017822,6.6922374,170.82,170.74,20.4985]
[1721924018127,6.6922374,170.82,170.75,5.8564]
[1721924018332,0.8032374,170.82,170.81,5.8544]
[1721924018501,0.8032374,170.82,170.81,50.8544]
[1721924019525,0.8032374,170.82,170.81,70.8544]
[1721924019831,256.6,170.91,170.84,14.633]
[1721924020028,16.4752,170.95,170.85,45.0]
[1721924020228,16.4752,170.95,170.81,65.0]
[1721924020415,20.0,170.93,170.81,65.0]
[1721924020607,16.4752,170.95,170.83,5.8536]
[1721924021136,16.4752,170.95,170.83,5.8534]
[1721924021305,20.0,170.94,170.81,20.0]
[1721924021504,40.0,170.94,170.81,20.0]
[1721924021726,2.37757379,170.98,170.81,20.0]
[1721924021727,0.8032374,170.99,170.86,29.78]
[1721924021920,20.8032374,170.99,170.83,23.17593599]
[1721924022118,57.4478489,170.99,170.85,5.8528]
[1721924022333,17.64,170.98,170.87,5.8523]
[1721924022508,17.64,170.98,170.86,25.8527]
[1721924022711,37.64,170.98,170.86,34.6311]
[1721924023010,31.5995489,170.99,170.87,5.8523]
[1721924023219,31.5995489,170.99,170.86,34.6311]
[1721924023417,49.2395489,170.99,170.86,40.4837]
[1721924023614,20.0,170.98,170.86,34.6311]
[1721924024002,63.4888,170.98,170.86,34.6311]
[1721924024202,63.4888,170.98,170.83,51.7856]
[1721924024203,63.4888,170.98,170.83,66.4198]
[1721924024432,43.4888,170.98,170.85,5.8529]
[1721924024632,43.4888,170.98,170.84,45.0]
[1721924024633,43.4886,170.98,170.84,45.0]
[1721924024929,20.0,170.98,170.85,20.0]
[1721924025120,20.0,170.98,170.86,45.0]
[1721924025521,20.0,170.98,170.88,5.852]
[1721924026828,1.8195489,170.99,170.89,6.1]
[1721924027036,0.8032374,170.99,170.94,5.8499]
[1721924028130,0.8032374,170.99,170.95,5.8496]
[1721924028542,0.8032374,170.99,170.93,14.625]
[1721924029236,0.8032374,170.99,170.91,5.8507]
[1721924030011,0.8032374,170.99,170.97,5.8488]
[1721924030212,0.8032374,170.99,170.98,5.8486]
[1721924030413,0.8032374,170.99,170.98,50.8486]
[1721924031622,0.8032374,170.99,170.98,45.0]
[1721924032051,0.8032374,170.99,170.98,50.8486]
[1721924032950,0.8032374,170.99,170.96,44.4031]
[1721924033124,0.8032374,170.99,170.98,5.8486]
[1721924033834,0.8032374,170.99,170.97,5.8488]
[1721924034145,0.8032374,170.99,170.95,5.8494]
[1721924034318,0.8032374,170.99,170.96,72.01883665]
[1721924034760,0.8032374,170.99,170.96,66.16963665]
[1721924035222,0.8032374,170.99,170.96,65.0]
[1721924035423,0.8032374,170.99,170.98,5.8486]
[1721924035846,0.8032374,170.99,170.97,14.6219]
[1721924036050,0.8032374,170.99,170.98,5.8486]
[1721924036352,0.8032374,170.99,170.98,50.8486]
[1721924036653,0.8032374,170.99,170.98,70.8486]
[1721924038431,0.8032374,170.99,170.98,20.0]
[1721924038660,0.8032374,170.99,170.95,5.8493]
[1721924039320,0.8032374,170.99,170.94,1.16967604]
[1721924039529,0.8032374,170.99,170.95,5.8495]
[1721924039937,0.8032374,170.99,170.96,5.8492]
[1721924040138,0.8032374,170.99,170.95,5.8495]
[1721924040341,0.8032374,170.99,170.93,20.475]
[1721924040545,0.8032374,170.99,170.94,5.8499]
[1721924040748,0.8032374,170.99,170.95,5.8495]
[1721924041056,0.8032374,170.99,170.96,5.8493]
[1721924041354,0.8032374,170.99,170.94,1.16986718]
[1721924041554,0.8032374,170.99,170.95,5.8496]
[1721924041741,0.8032374,170.99,170.94,1.16986718]
[1721924041927,0.8032374,170.99,170.93,14.625]
[1721924042133,380.5,170.98,170.93,20.4751]
[1721924042553,380.5,170.98,170.94,5.8499]
[1721924043459,380.5,170.98,170.93,14.625]
[1721924043961,380.5,170.98,170.84,22.052]
[1721924044254,380.5,170.98,170.84,5.853]
[1721924044255,22.578,170.97,170.84,5.853]
[1721924044555,23.4912,170.91,170.78,20.4937]
[1721924044737,398.14,170.91,170.78,14.6383]
[1721924044953,398.14,170.91,170.75,15.4457]
[1721924044954,20.0,170.87,170.75,14.641]
[1721924045261,20.0,170.87,170.72,6.0094]
[1721924045262,20.0,170.83,170.72,6.0094]
[1721924045437,20.0,170.83,170.7,15.05]
[1721924045438,418.14,170.83,170.7,5.858]
[1721924046055,380.5,170.83,170.72,5.8572]
[1721924046247,380.5,170.83,170.71,14.6445]
[1721924046458,423.9938,170.83,170.7,5.8579]
[1721924046757,423.9938,170.83,170.68,14.6472]
[1721924046758,17.64,170.81,170.68,14.6472]
[1721924047139,26.2593,170.82,170.68,15.8187032]
[1721924047337,26.2593,170.82,170.71,5.8575]
[1721924047537,6.2593,170.82,170.72,5.8573]
[1721924047733,6.2593,170.82,170.71,20.5022]
[1721924048154,26.2593,170.82,170.71,20.5022]
[1721924048457,6.03200024,170.81,170.71,14.6444]
[1721924049036,6.03200024,170.81,170.72,5.8575]
[1721924049557,6.03200024,170.81,170.71,14.6444]
[1721924049855,6.03200024,170.81,170.71,20.5022]
[1721924050054,6.03200024,170.81,170.71,14.6444]
[1721924050434,20.0,170.8,170.68,5.8587]
[1721924050644,20.0,170.8,170.69,20.0]
[1721924051141,20.0,170.78,170.64,14.6506]
[1721924051343,20.0,170.78,170.66,5.8595]
[1721924052035,37.64,170.78,170.64,14.6506]
[1721924052235,17.64,170.77,170.65,5.8599]
[1721924052435,37.64,170.78,170.66,5.8595]
[1721924052738,62.64,170.77,170.67,5.8592]
[1721924053462,439.6648,170.8,170.67,20.5071]
[1721924053630,413.81,170.8,170.68,46.17154107]
[1721924053835,433.81,170.8,170.68,45.0]
[1721924054050,439.6648,170.8,170.68,45.0]
[1721924054267,433.81,170.8,170.68,5.8587]
[1721924054557,398.14,170.8,170.64,1.17143334]
[1721924054764,380.5,170.8,170.7,5.8581]
[1721924054955,380.5,170.8,170.71,45.0]
[1721924055156,20.0,170.8,170.67,5.8592]
[1721924055358,20.0,170.8,170.68,70.8588]
[1721924055554,17.64,170.79,170.68,65.0]
[1721924055743,17.64,170.79,170.68,45.0]
[1721924056047,17.64,170.78,170.65,14.6496]
[1721924056239,17.64,170.78,170.66,65.0]
[1721924056438,17.64,170.78,170.68,5.8588]
[1721924056872,17.64,170.78,170.67,14.6475]
[1721924056873,17.64,170.8,170.67,14.6475]
[1721924057169,17.64,170.78,170.67,14.6475]
[1721924057642,26.87192486,170.79,170.67,14.6475]
[1721924057643,1.01682486,170.79,170.67,14.6475]
[1721924058057,1.01682486,170.79,170.69,5.8585]
[1721924058767,1.01682486,170.79,170.67,20.5067]
[1721924058958,17.64,170.78,170.67,20.5067]
[1721924059360,17.64,170.78,170.66,66.17160053]
[1721924059361,17.64,170.76,170.66,20.0]
[1721924059554,17.64,170.76,170.65,20.0]
[1721924059750,17.64,170.74,170.62,5.8607]
[1721924059963,17.64,170.74,170.63,5.8606]
[1721924060367,387.0413,170.75,170.63,14.6507]
[1721924060563,404.6813,170.75,170.64,5.8602]
[1721924060750,404.6813,170.75,170.65,5.8599]
[1721924060945,387.0413,170.75,170.66,5.8595]
[1721924061150,387.0413,170.75,170.64,5.86]
[1721924061470,404.6813,170.75,170.64,5.86]
[1721924061852,404.6813,170.75,170.65,5.8599]
[1721924062054,387.0413,170.75,170.67,5.859]
[1721924062449,387.0413,170.75,170.66,7.03115086]
[1721924062649,387.0413,170.75,170.65,14.6491]
[1721924062856,387.0413,170.75,170.67,5.8592]
[1721924063061,6.5413,170.75,170.66,45.0]
[1721924063651,24.1813,170.75,170.65,45.0]
[1721924063861,24.1813,170.75,170.64,5.8602]
[1721924064058,24.1813,170.75,170.65,20.0]
[1721924064659,24.1813,170.75,170.65,25.8599]
[1721924065050,24.1813,170.75,170.65,20.0]
[1721924065372,24.1813,170.75,170.66,1.17175394]
[1721924065373,6.5413,170.75,170.66,1.17175394]
[1721924065672,6.5413,170.75,170.69,5.8585]
[1721924066252,15.6605,170.77,170.69,5.8585]
[1721924066770,15.6605,170.77,170.68,20.5053]
[1721924067075,15.6605,170.77,170.69,5.8585]
[1721924067455,15.6605,170.77,170.68,20.5053]
[1721924067769,15.6605,170.77,170.69,50.8585]
[1721924068171,15.6605,170.77,170.71,5.8575]
[1721924068855,15.6605,170.77,170.7,20.503]
[1721924069169,15.6605,170.77,170.71,45.0]
[1721924070384,15.6605,170.77,170.69,5.8585]
[1721924070671,15.6605,170.77,170.68,5.8588]
[1721924070874,15.6605,170.77,170.69,65.0]
[1721924071075,15.6605,170.77,170.69,70.8584]
[1721924071454,1.01682486,170.79,170.7,29.7]